Cogmind - Beta 15 @@@ ROGUE MODE // 2025.07.27 @ 16:40:23 Player: Ordlif Result: Destroyed by YT-NPW(R) with Subdweller Laser Performance ------------- Evolutions (0) 0 Regions Visited (3) 600 Robots Destroyed (17) 85 Value Destroyed (456) 456 Prototype IDs (0) 0 Alien Tech Used (0) 0 Bonus (0) 0 TOTAL SCORE: 1141 Bonus ------- None Cogmind --------- Core Integrity 0/250 Matter 300/300 Energy 39/100 System Corruption 0% Temperature Cool (9) Movement Walking (120) Location -10/Subcaves Parts ------- > --- POWER (1) -------- Subdweller Power Source > --- PROPULSION (2) --- Carbon-fiber Leg Myomer Leg > --- UTILITY (2) ------ Medium Storage Unit Subdweller Optics > --- WEAPON (2) ------- Subdweller Laser Subdweller Laser > --- INVENTORY (10) --- Subdweller Power Source Subdweller Monowheel Subdweller Monowheel Small Storage Unit Medium Matter Pod (100) Subdweller Optics Seismic Detector Scrap Shield Subdweller Laser Peak State ------------ > --- POWER ------------ Subdweller Power Source > --- PROPULSION ------- Carbon-fiber Leg Myomer Leg > --- UTILITY ---------- Medium Storage Unit Subdweller Optics > --- WEAPON ----------- Subdweller Laser Subdweller Laser > --- INVENTORY -------- Subdweller Power Source Subdweller Monowheel Subdweller Monowheel Subdweller Monowheel Small Storage Unit Medium Matter Pod Subdweller Optics Seismic Detector Scrap Shield [Rating: 20] Favorites ----------- Power Ion Engine Engine Ion Engine Propulsion Aluminum Leg Leg Aluminum Leg Wheel Subdweller Monowheel Utility Medium Storage Unit Device Improved Heat Sink Storage Medium Storage Unit Hackware Hacking Suite Weapon Medium Laser Energy Gun Medium Laser Ballistic Gun Light Assault Rifle Special Weapon Mining Laser Build | -11 -10 -10 -10 ------- Run | Yrd Mat Min Sub Slots Evolved . | . . . . Power . | . . . . Propulsion . | . . . . Utility . | . . . . Weapon . | . . . . Parts Attached 32 | 6 6 8 12 Power 6 | 1 1 2 2 Engine 6 | 1 1 2 2 Core . | . . . . Reactor . | . . . . Propulsion 10 | 2 2 2 4 Treads . | . . . . Leg 8 | 2 2 2 2 Wheel 2 | . . . 2 Hover . | . . . . Flight . | . . . . Utility 8 | 1 2 1 4 Device 5 | . 1 1 3 Storage 2 | 1 1 . . Processor . | . . . . Hackware 1 | . . . 1 Protection . | . . . . Artifact . | . . . . Weapon 8 | 2 1 3 2 Energy Gun 4 | . . 2 2 Energy Cannon . | . . . . Ballistic Gun 3 | 2 1 . . Ballistic Cannon . | . . . . Launcher . | . . . . Special Weapon 1 | . . 1 . Impact Weapon . | . . . . Slashing Weapon . | . . . . Piercing Weapon . | . . . . Special Melee Weapon . | . . . . Unidentified Prototypes . | . . . . Parts Lost 11 | . . 7 4 Power 2 | . . 2 . Propulsion 3 | . . 1 2 Utility 1 | . . 1 . Weapon 5 | . . 3 2 Highest Loss Streak 5 | . . 5 4 To Critical Strikes . | . . . . Average Backups 5 | . 5 5 7 Power . | . . . 1 Propulsion . | . . . 1 Utility 3 | . 2 4 4 Weapon . | . 1 . . Tool/Special . | . . . . Unused Backups 9 | . . 3 6 Power 1 | . . . 1 Propulsion 1 | . . . 1 Utility 6 | . . 3 3 Weapon 1 | . . . 1 Tool/Special . | . . . . Average Slot Usage (%) 89 | . 97 97 74 Engine 11 | . 14 12 9 Leg 24 | . 28 27 17 Device 11 | . 11 13 9 Storage 14 | . 14 14 14 Hackware 1 | . . . 4 Energy Gun 13 | . . 23 17 Ballistic Gun 10 | . 28 1 . Special Weapon 1 | . . 3 . Peak Build Rating 20 | 6 8 14 20 Average Rating 9 | 4 7 9 13 On Entrance 6 | . 6 8 10 Naked Turns . | . . . . Heaviest Build 25 | 12 19 24 25 Greatest Support 40 | 20 20 20 40 Greatest Overweight (x) 5 | . . 1 5 Average Overweight (x) . | . . . . Largest Inventory Capacity 10 | 8 10 10 10 Average Capacity 9 | 7 9 10 10 Most Carried 10 | . 9 10 10 Average Carried 7 | . 5 9 8 Final Capacity 10 | 8 10 10 10 Final Carried 10 | . 9 9 10 Class Distribution -------------------- 83% | Mutant 16% | Scavenger-Mutant Dominant Class ---------------- Mutant | -10/Materials Mutant | -10/Mines Scavenger-Mutant | -10/Subcaves Resources | -11 -10 -10 -10 ----------- Run | Yrd Mat Min Sub Matter Collected 824 | 179 301 194 150 Remotely . | . . . . Salvage Created 573 | . 362 116 95 Parts 32 | . 21 4 7 Haulers Intercepted 1 | . 1 . . Recyclers Shooed . | . . . . Parts Field Recycled . | . . . . Retrieved Matter . | . . . . Parts Self-Destructed 6 | . . . 6 Prevented . | . . . . Kills | -11 -10 -10 -10 ------- Run | Yrd Mat Min Sub Combat Hostiles Destroyed 15 | . 9 4 2 Guns 14 | . 9 3 2 Classes Destroyed 5 | . 4 . 1 Hauler 1 | . 1 . . Operator 1 | . 1 . . Swarmer 5 | . 3 2 . Grunt 8 | . 6 2 . Subdweller 2 | . . . 2 Best Kill Streak 3 | . 3 2 2 Combat Bots Only 3 | . 3 2 2 Max Kills in Single Turn 2 | . 2 1 1 Gunslinging 1 | . 1 . . Exploded . | . . . . Melee . | . . . . Uniques/NPCs Destroyed . | . . . . Combat | -11 -10 -10 -10 -------- Run | Yrd Mat Min Sub Hostile Shots Fired 157 | . 57 76 24 Missed 45 | . 19 17 9 Hits 112 | . 38 59 15 Projectile 112 | . 38 59 15 Damage Taken 1406 | . 449 690 267 Core 264 | . 98 101 65 Absorbed by Shields . | . . . . Core Remaining (%) 100 | 100 . . . Volleys Fired 71 | . 42 26 3 Largest 2 | . 2 2 2 Hottest 120 | . 40 100 120 Shots Fired 140 | . 84 50 6 Gun 140 | . 84 50 6 Cannon . | . . . . Launcher . | . . . . Special . | . . . . Kinetic 99 | . 84 15 . Thermal 41 | . . 35 6 Explosive . | . . . . Electromagnetic . | . . . . Robot Hit Streak 7 | . 7 5 7 Robot Miss Streak 9 | . 3 9 . Penetration Max . | . . . . Secondary Targets 2 | . 2 . . Max Gunslinging Chain 1 | . 1 . . Shots Hit Robots 87 | . 56 25 6 Core Hits 31 | . 21 6 4 Critical Kills . | . . . . Critical Parts Destroyed . | . . . . Critical Strikes 2 | . . 2 . Burn 2 | . . 2 . Melee Attacks . | . . . . Impact . | . . . . Slashing . | . . . . Piercing . | . . . . Sneak Attacks . | . . . . Combat Hostiles . | . . . . Follow-up Attacks . | . . . . Damage Inflicted 1091 | . 629 341 121 Guns 1091 | . 629 341 121 Cannons . | . . . . Explosions . | . . . . Melee . | . . . . Ramming . | . . . . Kinetic 743 | . 629 114 . Thermal 348 | . . 227 121 Explosive . | . . . . Electromagnetic . | . . . . Impact . | . . . . Slashing . | . . . . Piercing . | . . . . Highest Corruption . | . . . . Average Corruption . | . . . . Corruption Purged . | . . . . Corruption Blocked . | . . . . Overload Shots . | . . . . Overflow Damage . | . . . . Projectiles . | . . . . Explosions . | . . . . Melee . | . . . . Knockbacks . | . . . . Impact . | . . . . Kinetic . | . . . . Secondary . | . . . . Self-Inflicted Damage . | . . . . Shots . | . . . . Rammed . | . . . . Targets Rammed . | . . . . Kicked . | . . . . Crushed . | . . . . Highest Temperature 133 | . 18 133 18 Average Temperature 26 | . 8 44 8 Received Heat Transfer 471 | . 222 201 48 Siege Activations . | . . . . Martial Activations . | . . . . Shielding Activations . | . . . . Robots Disrupted . | . . . . Combat Hostiles . | . . . . Robots Corrupted . | . . . . Combat Hostiles . | . . . . Parts Fried . | . . . . Impact Corruptions . | . . . . Robots Melted 1 | . . 1 . Combat Hostiles 1 | . . 1 . Parts Melted 1 | . . 1 . Heat Transferred 964 | . . 814 150 Parts Sabotaged . | . . . . Parts Stolen . | . . . . Parts Stripped . | . . . . Power Chain Reactions . | . . . . Alert | -11 -10 -10 -10 ------- Run | Yrd Mat Min Sub Maximum Alert Level . | . . . . Low Security (%) 100 | 100 100 100 . Level 1 . | . . . . Level 2 . | . . . . Level 3 . | . . . . Level 4 . | . . . . Level 5 . | . . . . High Security . | . . . . Max Security . | . . . . Peak Influence 72 | . 72 32 . Initial 12 | . . 12 . Average 16 | . 28 5 . Influence Increases 422 | . 247 100 75 Destroy 0b10 Robot/C 260 | . 180 80 . Destroy 0b10 Robot/NC 10 | . 10 . . Destroy Leader 52 | . 42 10 . Trap Triggered on 0b10 10 | . . 10 . Disable Machine 15 | . 15 . . Lose Combat Pursuer 75 | . . . 75 Influence Decreases 422 | . 214 133 75 Entered New Map 21 | . . 21 . Time Decay 371 | . 214 92 65 Lost Part 30 | . . 20 10 Squads Dispatched 2 | . 2 . . Investigation . | . . . . Extermination . | . . . . Reinforcement 2 | . 2 . . Assault . | . . . . Garrison . | . . . . Intercept . | . . . . Searches Triggered . | . . . . Construction Impeded . | . . . . Haulers Reinforced . | . . . . Active Scanning Responses . | . . . . Cargo Convoy Interrupts . | . . . . Stealth | -11 -10 -10 -10 --------- Run | Yrd Mat Min Sub Distress Signals 1 | . 1 . . Communications Jammed . | . . . . Distress Signals . | . . . . Times Spotted 45 | . 18 8 19 Peak Tracking Total 11 | . 5 3 11 Tactical Retreats 5 | . . . 5 Traps | -11 -10 -10 -10 ------- Run | Yrd Mat Min Sub Traps Triggered . | . . . . Indirectly . | . . . . Trap Hack Attempts . | . . . . Triggered . | . . . . Disarmed . | . . . . Reprogrammed . | . . . . Reused 4 | . . 1 3 Traps Extracted . | . . . . Installed 5 | . . 1 4 Triggered 1 | . . 1 . Most Traps Carried 4 | . . 4 4 Machines | -11 -10 -10 -10 ---------- Run | Yrd Mat Min Sub Machines Disabled 1 | . 1 . . Max in Single Turn 1 | . 1 . . Machines Repaired . | . . . . Machines Dismantled . | . . . . Machines Sabotaged . | . . . . Overloaded Fab Kills . | . . . . Hacking | -11 -10 -10 -10 --------- Run | Yrd Mat Min Sub Machines Accessed 1 | . 1 . . Terminals 1 | . 1 . . Fabricators . | . . . . Repair Stations . | . . . . Recycling Units . | . . . . Scanalyzers . | . . . . Garrison Access . | . . . . Total Hacks 6 | . 6 . . Successful 3 | . 3 . . Failed 3 | . 3 . . Catastrophic . | . . . . Database Lockouts . | . . . . Manual 3 | . 3 . . Terminals 6 | . 6 . . Fabricators . | . . . . Repair Stations . | . . . . Recycling Units . | . . . . Scanalyzers . | . . . . Garrison Access . | . . . . Terminal Hacks 2 | . 2 . . Record 1 | . 1 . . Robot Analysis 1 | . 1 . . Fabricator Hacks . | . . . . Repair Station Hacks . | . . . . Recycling Unit Hacks . | . . . . Scanalyzer . | . . . . Garrison Access Hacks . | . . . . Unauthorized Hacks 1 | . 1 . . Terminals 1 | . 1 . . Botnet 1 | . 1 . . Fabricators . | . . . . Repair Stations . | . . . . Recycling Units . | . . . . Scanalyzers . | . . . . Garrison Access . | . . . . Data Cores Recovered . | . . . . Used . | . . . . Hacking Detections 1 | . 1 . . Full Trace Events . | . . . . Feedback Events . | . . . . Feedback Blocked . | . . . . Robot Schematics Acquired . | . . . . Robots Built . | . . . . Authchips . | . . . . Time . | . . . . Total Robot Build Rating . | . . . . Part Schematics Acquired . | . . . . Parts Built . | . . . . Authchips . | . . . . Time . | . . . . Total Part Build Rating . | . . . . Parts Repaired . | . . . . Time . | . . . . Parts Recycled . | . . . . Recycled Matter . | . . . . Retrieved Matter . | . . . . Retrieved Components . | . . . . Parts Scanalyzed . | . . . . Part Schematics Acquired . | . . . . Parts Damaged . | . . . . Bothacking | -11 -10 -10 -10 ------------ Run | Yrd Mat Min Sub Used RIF Installer . | . . . . Robots Hacked . | . . . . Non-combat . | . . . . Combat . | . . . . Robot Hacks Applied . | . . . . Relay Couplers Released . | . . . . Fabnet Peak Effective % . | . . . . Robots Rewired . | . . . . Allies Hacked . | . . . . Hacks Repelled . | . . . . Allies | -11 -10 -10 -10 -------- Run | Yrd Mat Min Sub Total Allies 1 | . . 1 . Largest Group 1 | . . 1 . Highest-Rated Group 31 | . . 31 . Highest-Rated Ally 31 | . . 31 . Total Orders . | . . . . Ally Attacks 7 | . . 7 . Total Damage 41 | . . 41 . Kills . | . . . . Allies Corrupted . | . . . . Allies Melted . | . . . . Intel | -11 -10 -10 -10 ------- Run | Yrd Mat Min Sub Active Infowar (turns) 938 | . 533 22 383 Optics 383 | . . . 383 Sensors 555 | . 533 22 . Robot Analysis Total 1 | . 1 . . Derelict Logs Recovered 1 | . . 1 . Drone Launches . | . . . . Drone Recoveries . | . . . . Exploration | -11 -10 -10 -10 ------------- Run | Yrd Mat Min Sub Turns Passed 1919 | 49 652 590 628 Spaces Moved 1255 | 37 421 396 401 Core 70 | 5 . . 65 Treads . | . . . . Legs 1174 | 32 421 396 325 Wheels 11 | . . . 11 Hover . | . . . . Flight . | . . . . Fastest Speed 50 | 50 120 120 110 Average Speed 126 | 110 120 122 137 Slowest Speed 300 | 120 120 190 300 Overloaded Moves . | . . . . Propulsion Burnouts . | . . . . Robots Hopped . | . . . . Potential Cave-ins . | . . . . Cave-ins Triggered . | . . . . Exploration Rate (%) 39 | 3 48 83 24 Regions Visited 3 Branch Regions 2 Pre-discovered Areas . | . . . . Known Exits Taken . | . . . . Unknown Exits Taken 3 | 1 1 1 . Scrap Searched 1 | . . 1 . Spaces Dug . | . . . . Terrain Destroyed . | . . . . Melee . | . . . . Projectile . | . . . . AOE . | . . . . Terrain Rammed . | . . . . Walls Destroyed . | . . . . Machines Disabled . | . . . . Actions | -11 -10 -10 -10 --------- Run | Yrd Mat Min Sub Total 1459 | 42 491 453 473 Wait 41 | . 10 3 28 Move 1252 | 36 420 395 401 Hop . | . . . . Pick Up 33 | . 10 12 11 Fast Attach 12 | 6 . . 6 Attach 9 | . 1 7 1 Detach . | . . . . Swap 14 | . 5 4 5 Drop 22 | . 3 5 14 Fire 71 | . 42 26 3 Melee . | . . . . Ram . | . . . . Kick . | . . . . Crush . | . . . . Escape Stasis . | . . . . Rewire . | . . . . Trap 5 | . . 1 4 Miscellaneous . | . . . . Route ------- -11/Scrapyard -10/Materials (discovered 2 exits: [*Mat] / [*Min]) -10/Mines (discovered 2 exits: [*Mat] / [*Sub]) -10/Subcaves (discovered 1 exit: [*Mat]) History --------- Turn | Location | Event 3 | -11/Scrapyard | Discovered new exit (range 15) 50 | -11/Scrapyard | Entered Materials 300 | -10/Materials | Build established: Mutant 316 | -10/Materials | Discovered new exit (range 13) 649 | -10/Materials | Discovered new exit (range 16) 702 | -10/Materials | Entered Mines 745 | -10/Mines | Core integrity fell below 50% 767 | -10/Mines | Lost 5 parts (1p1n1u2w) 790 | -10/Mines | Found a hidden stash of uninstalled traps 817 | -10/Mines | Discovered new exit (range 14) 959 | -10/Mines | Learned Materials security intel 968 | -10/Mines | Received a Mining Laser from a helpful Derelict 1282 | -10/Mines | Discovered new exit (range 9) 1292 | -10/Mines | Entered Subcaves 1349 | -10/Subcaves | Shifting Twisted Machinery released Sub. Power Source 1360 | -10/Subcaves | Shifting Twisted Machinery released Shrapnel Trap 1376 | -10/Subcaves | Ambushed by swarm of Subdwellers 1382 | -10/Subcaves | Core integrity fell below 20% 1383 | -10/Subcaves | Ambushed by Subdwellers from Twisted Machinery 1383 | -10/Subcaves | Ambushed by Subdwellers from Twisted Machinery 1438 | -10/Subcaves | Lost 4 parts (2n2w) 1448 | -10/Subcaves | Lost 4 allies 1891 | -10/Subcaves | Build established: Scavenger-Mutant 1908 | -10/Subcaves | Discovered new exit (range 8) 1920 | -10/Subcaves | Destroyed by YT-NPW(R) with Subdweller Laser Last Messages --------------- 01699_ Acquired Sub. Laser. 01701_ Subatomizers dissect the Sub. Power Source. 01741_ Subatomizers dissect the Armor Integrity Analyzer. 01746_ Acquired 10 matter. 01754_ Subatomizers dissect the Armor Integrity Analyzer. 01761_ Dropped Sub. Monowheel. 01761_ Acquired Sub. Laser. 01768_ Subatomizers dissect the Armor Integrity Analyzer. 01779_ Subatomizers dissect the Sub. Monowheel. 01820_ 68-2TW(R) destroyed. 01828_ JS-COZ(R) destroyed. 01832_ Dropped Sub. Optics. 01855_ Acquired 10 matter. 01870_ Sub. Power Source shoots sparks and powers down. 01908_ EXIT=FOUND Map ----- +----------------------------------------------------+ | | | | | | | | | | | | | | | | | ?????????????????????????????????????????????????? | | ?????????????????????????????????????????????????? | | ?????????????????????????????????????????????????? | | ?????????????????????????????????????????????????? | | ?????????????????????????????????????????????????? | | ?????????????????????????????????????????????????? | | ?????????????????????????????????????????????????? | | ?????????????????????????????????????????????????? | | ?????????????????????????????????????????????????? | | ?????????????????????????????????????????????????? | | ?????????????????????????????????????????????????? | | ?????????????????????????????????????????????????? | | ?????????????????????????????????????????????????? | | ?????????????????????????????????????????????????? | | ???????????????????#########?####?????####???????? | | ?????????????????### ### ######"""###?????? | | ?????????????????# """"" ""#?????? | | ?????????????????# @ """" <"??????? | | ????????????????# ## # ""# "# "?"#????? | | ??????????? ???# ## # "# #"""#????? | | ?????????""" ?????# ## """ """"????? | | ????????? "" RR ???????## """ " """#????? | | ?????????# ####??????????# # # ##??????? | | ??????????????????????????# ####???????????? | | ?????????????????????????## #####????????######? | | ???????????????????????### ##???????######"# ## | | ???????????????????????# ##??????## " [&& | | ???????????????????????# #??????# """%! | | ???????????????????????# ##????## *!&%#& | | ???????????????????????## #???## ##### | | ????????????????????????# #??## #??# | | ????????????????????????## ###### ##?# ## | | ?????????????????????????# ### #??###?#### | | ????????????????????????## # ##????????## | | ????????????????????????# ## #?????????# | | ????????????????????????# ## ###???????# | | ???????????????????????#" # #??????## | | ????????????????????# ## ####??## | | ????????????????????# ## #??# | | ????????????????????# #" ## #??## # | | ???????????????????#" ###" ## ##?####? | | ???????????????????# ???# ## ## ## #?## ? | +----------------------------------------------------+ Best States ------------- Heat Dissipation 39 Energy Generation 18 Energy Capacity 250 Matter Stores 300 Matter Capacity 300 Sight Range 21 Robot Scan Range 14 Terrain Scan Density 10 Evasion (%) 55 Offensive Hacking 10 Item Schematics ----------------- None Robot Schematics ------------------ None Fabricated ------------ Nothing Repaired ---------- Nothing Alien Tech Used ----------------- None Achievements -------------- Slippery One Challenges ------------ None Game ------ Seed DirtyBiomechanicalRail Manual? 0 Play Time 00:28:28 Cumulative 6.6 hours Start 2025.07.27 @ 15:38:41 End 2025.07.27 @ 16:40:23 Sessions 1 Manual Loads 0 Difficulty Rogue Special Mode None Game No. 6 Rogue 6 Adventurer 0 Explorer 0 Win Type - Total 0 Types 0/0/0/0/0/0/0/0/0/0 Lore% 5 Gallery% 15 Achievement% 17 Wizard Run 0 Options --------- Layout 1 ASCII 0 Keyboard 0 Movement Mouse Keybinds 0 Fullscreen 2 Font 32/Tamsyn Map View 50x35 Zoom Use 0% Tactical HUD 1 Map Filters NONE Filters NONE Steam 1 RUN: 3297177f-a5de-4ffc-b914-003670af2f9f